[Event "2026 European Womens Championship"]
[Site "Batumi, GE"]
[Date "2026.06.03"]
[Round "9"]
[White "Kalyoncu, Beren"]
[Black "Vakhania, Aleksandra"]
[Result "1-0"]
[Board "71"]
[TimeControl "5400+30"]
[WhiteFideId "51608383"]
[BlackFideId "13602560"]
[WhiteElo "1840"]
[BlackElo "2079"]
[WhiteTitle "WCM"]
[BlackTitle "WIM"]
[WhiteClock "0:31:04"]
[BlackClock "0:14:42"]
[Variant "Standard"]

1. e4 {[%clk 1:30:47]}  d5 {[%clk 1:30:23]} 2. exd5 {[%clk 1:31:03]}  Qxd5 {[%clk 1:30:48]} 3. Nc3 {[%clk 1:31:16]}  Qd6 {[%clk 1:31:14]}
4. d4 {[%clk 1:31:18]}  Nf6 {[%clk 1:31:39]} 5. Nf3 {[%clk 1:31:22]}  a6 {[%clk 1:31:59]} 6. g3 {[%clk 1:24:14]}  Bg4 {[%clk 1:30:21]}
7. Bg2 {[%clk 1:22:34]}  e6 {[%clk 1:29:37]} 8. O-O {[%clk 1:21:53]}  Nc6 {[%clk 1:29:33]} 9. h3 {[%clk 1:16:04]}  Bxf3 {[%clk 1:26:33]}
10. Qxf3 {[%clk 1:16:15]}  Be7 {[%clk 1:26:50]} 11. Bf4 {[%clk 1:14:11]}  Qd7 {[%clk 1:25:10]} 12. Rad1 {[%clk 1:11:15]}  O-O {[%clk 1:22:39]}
13. d5 {[%clk 1:09:26]}  exd5 {[%clk 1:20:38]} 14. Nxd5 {[%clk 1:09:36]}  Nxd5 {[%clk 1:20:57]} 15. Qxd5 {[%clk 0:59:58]}  Qc8 {[%clk 1:18:55]}
16. Qd7 {[%clk 0:57:32]}  Bf6 {[%clk 1:14:41]} 17. Bxc6 {[%clk 0:53:24]}  bxc6 {[%clk 1:15:03]} 18. b3 {[%clk 0:53:26]}  Ra7 {[%clk 1:01:16]}
19. Rfe1 {[%clk 0:48:18]}  h6 {[%clk 0:48:26]} 20. Qxc8 {[%clk 0:46:17]}  Rxc8 {[%clk 0:48:51]} 21. Re4 {[%clk 0:46:22]}  a5 {[%clk 0:47:37]}
22. a4 {[%clk 0:45:42]}  g5 {[%clk 0:30:25]} 23. Be3 {[%clk 0:45:42]}  Ra6 {[%clk 0:30:27]} 24. Rd7 {[%clk 0:43:46]}  c5 {[%clk 0:28:31]}
25. Rd5 {[%clk 0:41:00]}  c6 {[%clk 0:20:58]} 26. Rxc5 {[%clk 0:40:18]}  Rd8 {[%clk 0:21:10]} 27. Kf1 {[%clk 0:30:43]}  Rd1+ {[%clk 0:16:41]}
28. Ke2 {[%clk 0:28:40]}  Rh1 {[%clk 0:17:07]} 29. Rec4 {[%clk 0:24:53]}  Rxh3 {[%clk 0:16:08]} 30. Rxc6 {[%clk 0:25:11]}  Rxc6 {[%clk 0:16:23]}
31. Rxc6 {[%clk 0:25:34]}  Kg7 {[%clk 0:16:34]} 32. Rc5 {[%clk 0:25:04]}  Bd8 {[%clk 0:10:38]} 33. Bd2 {[%clk 0:22:27]}  Rh1 {[%clk 0:09:01]}
34. Bxa5 {[%clk 0:22:24]}  Be7 {[%clk 0:09:26]} 35. Rd5 {[%clk 0:21:00]}  Rc1 {[%clk 0:09:12]} 36. c4 {[%clk 0:19:54]}  h5 {[%clk 0:09:32]}
37. Bd2 {[%clk 0:18:40]}  Rb1 {[%clk 0:09:01]} 38. b4 {[%clk 0:18:24]}  h4 {[%clk 0:05:08]} 39. gxh4 {[%clk 0:18:28]}  gxh4 {[%clk 0:05:32]}
40. b5 {[%clk 0:17:03]}  Kg6 {[%clk 0:05:12]} 41. Kf3 {[%clk 0:15:06]}  h3 {[%clk 0:26:05]} 42. Kg3 {[%clk 0:43:05]}  Rh1 {[%clk 0:24:51]}
43. a5 {[%clk 0:37:38]}  h2 {[%clk 0:15:13]} 44. Kg2 {[%clk 0:37:40]}  Rf1 {[%clk 0:15:20]} 45. Kxh2 {[%clk 0:37:55]}  Rxf2+ {[%clk 0:15:44]}
46. Kg3 {[%clk 0:36:38]}  Rf1 {[%clk 0:15:29]} 47. b6 {[%clk 0:35:51]}  Rb1 {[%clk 0:15:35]} 48. Bf4 {[%clk 0:34:12]}  Rb3+ {[%clk 0:15:41]}
49. Kg2 {[%clk 0:32:59]}  Rb4 {[%clk 0:14:26]} 50. Rb5 {[%clk 0:31:47]}  Rxc4 {[%clk 0:14:42]} 51. b7 {[%clk 0:31:04]} 1-0

[Event "2026 European Womens Championship"]
[Site "Batumi, GE"]
[Date "2026.06.03"]
[Round "9"]
[White "Rusitashvili, Tea"]
[Black "Rekhviashvili, Mariam"]
[Result "1-0"]
[Board "72"]
[TimeControl "5400+30"]
[WhiteFideId "13640771"]
[BlackFideId "13635859"]
[WhiteElo "1929"]
[BlackElo "1836"]
[WhiteTitle "WCM"]
[WhiteClock "0:29:12"]
[BlackClock "0:24:10"]
[Variant "Standard"]

1. e4 {[%clk 1:30:57]}  e6 {[%clk 1:27:00]} 2. d4 {[%clk 1:31:18]}  d5 {[%clk 1:27:11]} 3. Nd2 {[%clk 1:31:41]}  dxe4 {[%clk 1:27:34]}
4. Nxe4 {[%clk 1:31:53]}  Nd7 {[%clk 1:28:01]} 5. Nf3 {[%clk 1:32:09]}  Ngf6 {[%clk 1:28:24]} 6. Nxf6+ {[%clk 1:32:21]}  Nxf6 {[%clk 1:28:51]}
7. Bg5 {[%clk 1:32:04]}  Be7 {[%clk 1:29:15]} 8. Bd3 {[%clk 1:32:28]}  O-O {[%clk 1:29:35]} 9. Qe2 {[%clk 1:31:55]}  c5 {[%clk 1:29:46]}
10. dxc5 {[%clk 1:31:50]}  Qa5+ {[%clk 1:26:32]} 11. c3 {[%clk 1:32:10]}  Qxc5 {[%clk 1:26:42]} 12. O-O-O {[%clk 1:31:45]}  Nd5 {[%clk 1:07:22]}
13. Bxe7 {[%clk 1:25:23]}  Nxe7 {[%clk 1:05:43]} 14. h4 {[%clk 1:16:16]}  Nd5 {[%clk 1:04:12]} 15. Ng5 {[%clk 1:07:40]}  h6 {[%clk 1:01:51]}
16. Qf3 {[%clk 1:01:32]}  Bd7 {[%clk 0:50:14]} 17. Ne4 {[%clk 0:54:48]}  Qc7 {[%clk 0:47:18]} 18. Kb1 {[%clk 0:46:13]}  Bc6 {[%clk 0:46:01]}
19. Qh3 {[%clk 0:44:55]}  Qb6 {[%clk 0:44:08]} 20. Ka1 {[%clk 0:42:27]}  Nf4 {[%clk 0:41:49]} 21. Qg3 {[%clk 0:41:39]}  Nxd3 {[%clk 0:41:55]}
22. Qxd3 {[%clk 0:34:41]}  Bxe4 {[%clk 0:41:16]} 23. Qxe4 {[%clk 0:34:30]}  Qxf2 {[%clk 0:40:50]} 24. Rhf1 {[%clk 0:34:53]}  Qb6 {[%clk 0:40:51]}
25. g4 {[%clk 0:34:21]}  Rad8 {[%clk 0:40:21]} 26. Qf4 {[%clk 0:28:13]}  Rxd1+ {[%clk 0:38:50]} 27. Rxd1 {[%clk 0:28:41]}  Rd8 {[%clk 0:37:34]}
28. Rf1 {[%clk 0:29:03]}  Rd7 {[%clk 0:37:42]} 29. Qf3 {[%clk 0:23:50]}  Qd6 {[%clk 0:34:20]} 30. a3 {[%clk 0:22:05]}  a6 {[%clk 0:32:56]}
31. Rg1 {[%clk 0:19:22]}  Qd5 {[%clk 0:32:41]} 32. Qe2 {[%clk 0:19:10]}  Qd3 {[%clk 0:31:01]} 33. Qe5 {[%clk 0:19:01]}  Qf3 {[%clk 0:30:11]}
34. Qe1 {[%clk 0:18:27]}  Qd5 {[%clk 0:23:23]} 35. Qe2 {[%clk 0:17:21]}  Qd2 {[%clk 0:18:53]} 36. Qf3 {[%clk 0:15:43]}  Qd3 {[%clk 0:16:27]}
37. Qf4 {[%clk 0:14:32]}  Qe2 {[%clk 0:16:20]} 38. Qc1 {[%clk 0:12:18]}  Rd2 {[%clk 0:15:59]} 39. Ka2 {[%clk 0:09:19]}  Rc2 {[%clk 0:14:28]}
40. Qb1 {[%clk 0:08:30]}  b5 {[%clk 0:12:26]} 41. Rh1 {[%clk 0:07:23]}  Qc4+ {[%clk 0:10:55]} 42. Ka1 {[%clk 0:07:45]}  Qe2 {[%clk 0:11:02]}
43. Re1 {[%clk 0:07:58]}  Qg2 {[%clk 0:10:35]} 44. Rg1 {[%clk 0:07:56]}  Qe4 {[%clk 0:08:15]} 45. Re1 {[%clk 0:08:04]}  Qa4 {[%clk 0:07:01]}
46. Rd1 {[%clk 0:08:17]}  b4 {[%clk 0:28:17]} 47. Rd8+ {[%clk 0:35:17]}  Kh7 {[%clk 0:28:41]} 48. Rd4 {[%clk 0:29:45]}  a5 {[%clk 0:28:49]}
49. cxb4 {[%clk 0:29:33]}  axb4 {[%clk 0:28:33]} 50. Rc4 {[%clk 0:29:45]}  f5 {[%clk 0:24:10]} 51. Qxc2 {[%clk 0:29:12]} 1-0

[Event "2026 European Womens Championship"]
[Site "Batumi, GE"]
[Date "2026.06.03"]
[Round "9"]
[White "Koghuashvili, Tekla"]
[Black "Chkhartishvili, Lika"]
[Result "0-1"]
[Board "73"]
[TimeControl "5400+30"]
[WhiteFideId "13621564"]
[BlackFideId "13635166"]
[WhiteElo "1921"]
[BlackElo "1822"]
[WhiteClock "0:21:36"]
[BlackClock "0:14:37"]
[Variant "Standard"]

1. d4 {[%clk 1:30:59]}  d5 {[%clk 1:30:55]} 2. c4 {[%clk 1:31:25]}  e6 {[%clk 1:31:22]} 3. Nf3 {[%clk 1:31:51]}  Nf6 {[%clk 1:31:45]}
4. Nc3 {[%clk 1:32:17]}  Nbd7 {[%clk 1:31:56]} 5. Bf4 {[%clk 1:32:31]}  a6 {[%clk 1:24:00]} 6. cxd5 {[%clk 1:30:24]}  exd5 {[%clk 1:24:16]}
7. e3 {[%clk 1:30:44]}  Bb4 {[%clk 1:23:12]} 8. Bd3 {[%clk 1:29:15]}  O-O {[%clk 1:21:57]} 9. O-O {[%clk 1:28:10]}  Nb6 {[%clk 1:14:51]}
10. h3 {[%clk 1:22:07]}  Bd6 {[%clk 1:11:28]} 11. Ne5 {[%clk 1:18:28]}  Be6 {[%clk 1:00:53]} 12. Bg5 {[%clk 1:14:30]}  h6 {[%clk 0:58:52]}
13. Bh4 {[%clk 1:14:11]}  Be7 {[%clk 0:56:07]} 14. Bb1 {[%clk 1:11:18]}  Re8 {[%clk 0:43:51]} 15. f4 {[%clk 1:08:34]}  Nc4 {[%clk 0:39:45]}
16. Nxc4 {[%clk 1:04:40]}  dxc4 {[%clk 0:40:07]} 17. e4 {[%clk 1:04:48]}  Nxe4 {[%clk 0:34:13]} 18. Bxe4 {[%clk 0:44:41]}  Bxh4 {[%clk 0:31:39]}
19. Bxb7 {[%clk 0:42:24]}  Rb8 {[%clk 0:31:16]} 20. Bxa6 {[%clk 0:37:11]}  c6 {[%clk 0:25:55]} 21. f5 {[%clk 0:33:04]}  Bd5 {[%clk 0:25:38]}
22. Nxd5 {[%clk 0:31:28]}  cxd5 {[%clk 0:25:31]} 23. b4 {[%clk 0:27:57]}  Rxb4 {[%clk 0:24:14]} 24. Rb1 {[%clk 0:27:57]}  Rxb1 {[%clk 0:23:25]}
25. Qxb1 {[%clk 0:25:00]}  Qf6 {[%clk 0:21:02]} 26. Bb5 {[%clk 0:25:59]}  Qxd4+ {[%clk 0:20:31]} 27. Kh1 {[%clk 0:26:17]}  Re2 {[%clk 0:20:01]}
28. Bc6 {[%clk 0:26:03]}  Rb2 {[%clk 0:15:41]} 29. Qd1 {[%clk 0:24:15]}  Rd2 {[%clk 0:13:48]} 30. Qf3 {[%clk 0:23:19]}  c3 {[%clk 0:14:38]}
31. Rc1 {[%clk 0:22:12]}  c2 {[%clk 0:14:29]} 32. Kh2 {[%clk 0:21:36]}  Rd1 {[%clk 0:14:37]} 0-1

[Event "2026 European Womens Championship"]
[Site "Batumi, GE"]
[Date "2026.06.03"]
[Round "9"]
[White "Manukyan, Tamara"]
[Black "Giorgadze, Mariam Ere"]
[Result "1/2-1/2"]
[Board "74"]
[TimeControl "5400+30"]
[WhiteFideId "13321307"]
[BlackFideId "13636839"]
[WhiteElo "1707"]
[BlackElo "1909"]
[WhiteClock "0:21:22"]
[BlackClock "0:29:22"]
[Variant "Standard"]

1. e4 {[%clk 1:30:59]}  c5 {[%clk 1:30:56]} 2. Nf3 {[%clk 1:31:25]}  d6 {[%clk 1:31:22]} 3. c3 {[%clk 1:31:50]}  Nf6 {[%clk 1:31:47]}
4. Qc2 {[%clk 1:32:16]}  g6 {[%clk 1:32:12]} 5. d4 {[%clk 1:32:22]}  Bg7 {[%clk 1:32:37]} 6. Bd3 {[%clk 1:32:37]}  O-O {[%clk 1:32:31]}
7. O-O {[%clk 1:32:51]}  Qc7 {[%clk 1:31:25]} 8. d5 {[%clk 1:31:36]}  Nbd7 {[%clk 1:27:48]} 9. c4 {[%clk 1:31:05]}  Ng4 {[%clk 1:25:09]}
10. Nc3 {[%clk 1:28:59]}  Nge5 {[%clk 1:24:57]} 11. Nxe5 {[%clk 1:21:29]}  Nxe5 {[%clk 1:25:20]} 12. f4 {[%clk 1:20:39]}  Nxd3 {[%clk 1:23:42]}
13. Qxd3 {[%clk 1:21:03]}  f5 {[%clk 1:22:49]} 14. Re1 {[%clk 1:17:55]}  Bd7 {[%clk 1:18:48]} 15. Qe2 {[%clk 1:08:45]}  fxe4 {[%clk 1:10:40]}
16. Nxe4 {[%clk 1:08:46]}  Rae8 {[%clk 1:09:24]} 17. Ng5 {[%clk 1:08:05]}  h6 {[%clk 1:07:37]} 18. Ne6 {[%clk 1:08:24]}  Bxe6 {[%clk 1:08:01]}
19. Qxe6+ {[%clk 1:08:50]}  Kh7 {[%clk 1:08:25]} 20. Rb1 {[%clk 1:05:01]}  Bd4+ {[%clk 1:05:58]} 21. Be3 {[%clk 1:02:22]}  Rxf4 {[%clk 0:59:29]}
22. Bxd4 {[%clk 1:02:42]}  cxd4 {[%clk 0:59:55]} 23. Rf1 {[%clk 1:01:50]}  Ref8 {[%clk 0:59:14]} 24. Rxf4 {[%clk 1:00:32]}  Rxf4 {[%clk 0:59:39]}
25. b3 {[%clk 0:55:08]}  Kg7 {[%clk 0:56:00]} 26. Rf1 {[%clk 0:50:47]}  Rxf1+ {[%clk 0:50:49]} 27. Kxf1 {[%clk 0:51:12]}  b5 {[%clk 0:41:43]}
28. Qe4 {[%clk 0:37:00]}  bxc4 {[%clk 0:41:00]} 29. Qxd4+ {[%clk 0:37:26]}  Kf7 {[%clk 0:41:24]} 30. bxc4 {[%clk 0:37:20]}  Qb7 {[%clk 0:38:09]}
31. Qf4+ {[%clk 0:36:09]}  Ke8 {[%clk 0:37:23]} 32. Qe4 {[%clk 0:34:25]}  g5 {[%clk 0:33:32]} 33. Qg6+ {[%clk 0:34:36]}  Kd8 {[%clk 0:33:47]}
34. Qg8+ {[%clk 0:34:21]}  Kc7 {[%clk 0:33:02]} 35. Qh7 {[%clk 0:34:47]}  Kb6 {[%clk 0:17:06]} 36. Qxh6 {[%clk 0:28:03]}  Kc5 {[%clk 0:17:31]}
37. Qxg5 {[%clk 0:28:31]}  Kxc4 {[%clk 0:17:33]} 38. Qf4+ {[%clk 0:27:47]}  Kd3 {[%clk 0:14:18]} 39. Qf3+ {[%clk 0:24:36]}  Kd4 {[%clk 0:14:01]}
40. Qf4+ {[%clk 0:22:59]}  Kd3 {[%clk 0:13:23]} 41. Qf5+ {[%clk 0:21:18]}  Kd4 {[%clk 0:11:52]} 42. Qf2+ {[%clk 0:20:14]}  Kd3 {[%clk 0:10:54]}
43. Qe2+ {[%clk 0:16:33]}  Kd4 {[%clk 0:10:00]} 44. h4 {[%clk 0:14:10]}  Qb1+ {[%clk 0:07:29]} 45. Kf2 {[%clk 0:13:59]}  Kxd5 {[%clk 0:06:45]}
46. g4 {[%clk 0:13:05]}  e5 {[%clk 0:03:29]} 47. h5 {[%clk 0:06:03]}  Ke6 {[%clk 0:02:21]} 48. Kg3 {[%clk 0:06:03]}  Qg1+ {[%clk 0:02:20]}
49. Kh4 {[%clk 0:06:12]}  Qh1+ {[%clk 0:02:02]} 50. Kg5 {[%clk 0:06:28]}  Qc1+ {[%clk 0:02:25]} 51. Kg6 {[%clk 0:05:29]}  Qf4 {[%clk 0:28:42]}
52. h6 {[%clk 0:21:33]}  Qf7 {[%clk 0:29:01]} 53. Kg5 {[%clk 0:21:22]}  Qf4+ {[%clk 0:29:22]} 1/2-1/2

[Event "2026 European Womens Championship"]
[Site "Batumi, GE"]
[Date "2026.06.03"]
[Round "9"]
[White "Damaso Tacoronte, Carolina"]
[Black "Asatiani, Natali"]
[Result "1/2-1/2"]
[Board "75"]
[TimeControl "5400+30"]
[WhiteFideId "2292858"]
[BlackFideId "13636715"]
[WhiteElo "1890"]
[BlackElo "1603"]
[WhiteClock "0:00:38"]
[BlackClock "0:03:33"]
[Variant "Standard"]

1. d4 {[%clk 1:30:59]}  Nf6 {[%clk 1:28:11]} 2. c4 {[%clk 1:31:21]}  e6 {[%clk 1:28:36]} 3. Nc3 {[%clk 1:30:59]}  d5 {[%clk 1:28:54]}
4. cxd5 {[%clk 1:30:38]}  exd5 {[%clk 1:29:19]} 5. Bg5 {[%clk 1:30:32]}  Be7 {[%clk 1:29:39]} 6. Nf3 {[%clk 1:30:24]}  O-O {[%clk 1:29:42]}
7. e3 {[%clk 1:30:07]}  c6 {[%clk 1:29:31]} 8. Bd3 {[%clk 1:28:34]}  h6 {[%clk 1:23:54]} 9. Bh4 {[%clk 1:27:37]}  Re8 {[%clk 1:21:43]}
10. Qc2 {[%clk 1:21:58]}  Nbd7 {[%clk 1:17:43]} 11. O-O {[%clk 1:19:21]}  Ne4 {[%clk 1:15:39]} 12. Bxe7 {[%clk 1:11:13]}  Qxe7 {[%clk 1:15:51]}
13. Rab1 {[%clk 1:10:51]}  f5 {[%clk 0:48:23]} 14. Ne2 {[%clk 1:04:28]}  Qd6 {[%clk 0:39:57]} 15. b4 {[%clk 1:03:14]}  a6 {[%clk 0:34:02]}
16. Rfc1 {[%clk 0:58:22]}  Ndf6 {[%clk 0:30:17]} 17. Ne5 {[%clk 0:51:04]}  Nd7 {[%clk 0:24:13]} 18. Nf3 {[%clk 0:48:30]}  Ndf6 {[%clk 0:24:29]}
19. Ne5 {[%clk 0:39:34]}  Nd7 {[%clk 0:24:35]} 20. Nxd7 {[%clk 0:39:16]}  Bxd7 {[%clk 0:24:50]} 21. a4 {[%clk 0:39:12]}  Qe7 {[%clk 0:17:29]}
22. Nf4 {[%clk 0:36:50]}  Qf6 {[%clk 0:17:09]} 23. b5 {[%clk 0:35:19]}  axb5 {[%clk 0:16:19]} 24. axb5 {[%clk 0:35:41]}  Reb8 {[%clk 0:13:55]}
25. Ra1 {[%clk 0:29:43]}  g5 {[%clk 0:13:15]} 26. bxc6 {[%clk 0:27:56]}  bxc6 {[%clk 0:13:16]} 27. Ne2 {[%clk 0:26:20]}  h5 {[%clk 0:08:37]}
28. h3 {[%clk 0:24:46]}  h4 {[%clk 0:08:22]} 29. Rxa8 {[%clk 0:24:41]}  Rxa8 {[%clk 0:08:52]} 30. Rb1 {[%clk 0:20:57]}  Qd8 {[%clk 0:07:27]}
31. Bxe4 {[%clk 0:20:23]}  fxe4 {[%clk 0:07:12]} 32. Qc5 {[%clk 0:12:20]}  Qf6 {[%clk 0:03:55]} 33. Qc2 {[%clk 0:10:18]}  Rf8 {[%clk 0:03:35]}
34. Rf1 {[%clk 0:10:30]}  Qd6 {[%clk 0:01:16]} 35. Qb2 {[%clk 0:10:04]}  Qc7 {[%clk 0:01:12]} 36. Qb4 {[%clk 0:10:10]}  Rf7 {[%clk 0:01:15]}
37. Rc1 {[%clk 0:08:58]}  Qd8 {[%clk 0:00:33]} 38. Qd6 {[%clk 0:04:20]}  Qf6 {[%clk 0:00:46]} 39. Qxf6 {[%clk 0:04:23]}  Rxf6 {[%clk 0:01:15]}
40. Nc3 {[%clk 0:04:30]}  Rf8 {[%clk 0:00:35]} 41. Na4 {[%clk 0:04:47]}  Rf7 {[%clk 0:21:20]} 42. Nb6 {[%clk 0:33:57]}  Be8 {[%clk 0:21:13]}
43. Na4 {[%clk 0:30:11]}  Bd7 {[%clk 0:18:04]} 44. Nc5 {[%clk 0:30:29]}  Bc8 {[%clk 0:18:28]} 45. Rb1 {[%clk 0:30:09]}  Rc7 {[%clk 0:16:52]}
46. Rb8 {[%clk 0:28:49]}  Kf7 {[%clk 0:15:36]} 47. Kh2 {[%clk 0:28:53]}  Bf5 {[%clk 0:12:52]} 48. Rb7 {[%clk 0:22:01]}  Rxb7 {[%clk 0:12:46]}
49. Nxb7 {[%clk 0:22:29]}  Bd7 {[%clk 0:10:47]} 50. Nc5 {[%clk 0:22:32]}  Bc8 {[%clk 0:11:10]} 51. Kg1 {[%clk 0:20:33]}  Kf6 {[%clk 0:10:53]}
52. Kf1 {[%clk 0:18:03]}  g4 {[%clk 0:08:57]} 53. hxg4 {[%clk 0:18:13]}  Bxg4 {[%clk 0:09:18]} 54. Kg1 {[%clk 0:17:27]}  h3 {[%clk 0:07:05]}
55. Na6 {[%clk 0:12:24]}  Ke7 {[%clk 0:06:31]} 56. gxh3 {[%clk 0:10:37]}  Bxh3 {[%clk 0:06:50]} 57. Nc5 {[%clk 0:09:57]}  Bg4 {[%clk 0:05:53]}
58. Kh2 {[%clk 0:10:13]}  Kd6 {[%clk 0:05:10]} 59. Kg3 {[%clk 0:10:33]}  Bf3 {[%clk 0:05:19]} 60. Kf4 {[%clk 0:10:36]}  Bg2 {[%clk 0:04:46]}
61. Nb3 {[%clk 0:08:14]}  Bf1 {[%clk 0:04:21]} 62. Kg5 {[%clk 0:06:34]}  Be2 {[%clk 0:04:22]} 63. Kf5 {[%clk 0:05:18]}  Bf1 {[%clk 0:04:12]}
64. Nc5 {[%clk 0:05:39]}  Bh3+ {[%clk 0:04:12]} 65. Kf4 {[%clk 0:05:51]}  Bg2 {[%clk 0:03:25]} 66. Nb3 {[%clk 0:04:45]}  Bf3 {[%clk 0:03:37]}
67. Nd2 {[%clk 0:04:35]}  Be2 {[%clk 0:03:14]} 68. Kf5 {[%clk 0:01:12]}  Bd1 {[%clk 0:03:22]} 69. Kf4 {[%clk 0:02:15]}  Be2 {[%clk 0:03:29]}
70. Nb3 {[%clk 0:01:40]}  Bd1 {[%clk 0:03:22]} 71. Nc5 {[%clk 0:00:47]}  Bf3 {[%clk 0:03:33]} 72. Kf5 {[%clk 0:00:38]}  Bg2 {[%clk 0:03:33]} 1/2-1/2

[Event "2026 European Womens Championship"]
[Site "Batumi, GE"]
[Date "2026.06.03"]
[Round "9"]
[White "Xing, Lida"]
[Black "Khairova, Evelina"]
[Result "0-1"]
[Board "76"]
[TimeControl "5400+30"]
[WhiteFideId "13326171"]
[BlackFideId "2845768"]
[WhiteElo "1598"]
[BlackElo "1880"]
[WhiteClock "0:18:34"]
[BlackClock "0:02:02"]
[Variant "Standard"]

1. e4 {[%clk 1:30:12]}  c6 {[%clk 1:30:54]} 2. d4 {[%clk 1:30:35]}  d5 {[%clk 1:31:20]} 3. exd5 {[%clk 1:31:01]}  cxd5 {[%clk 1:31:46]}
4. Nf3 {[%clk 1:31:27]}  Nc6 {[%clk 1:28:57]} 5. Ne5 {[%clk 1:31:50]}  e6 {[%clk 1:22:11]} 6. c3 {[%clk 1:31:58]}  g6 {[%clk 1:14:32]}
7. Nd2 {[%clk 1:31:39]}  Bg7 {[%clk 1:13:34]} 8. Ndf3 {[%clk 1:31:43]}  Nge7 {[%clk 1:10:52]} 9. Bd3 {[%clk 1:15:53]}  O-O {[%clk 1:05:14]}
10. h4 {[%clk 1:14:32]}  f6 {[%clk 1:01:51]} 11. Nxc6 {[%clk 1:13:40]}  Nxc6 {[%clk 0:51:58]} 12. Be3 {[%clk 1:07:02]}  e5 {[%clk 0:48:43]}
13. Bc2 {[%clk 1:06:34]}  e4 {[%clk 0:40:54]} 14. Ng1 {[%clk 1:06:30]}  f5 {[%clk 0:31:42]} 15. g3 {[%clk 1:06:39]}  Na5 {[%clk 0:29:50]}
16. Qe2 {[%clk 1:02:36]}  Nc4 {[%clk 0:28:15]} 17. Bb3 {[%clk 1:01:58]}  Nxe3 {[%clk 0:24:08]} 18. fxe3 {[%clk 0:59:54]}  Qd6 {[%clk 0:23:22]}
19. Qf2 {[%clk 0:55:17]}  a5 {[%clk 0:21:30]} 20. a4 {[%clk 0:54:03]}  Be6 {[%clk 0:17:28]} 21. Nh3 {[%clk 0:53:26]}  h6 {[%clk 0:17:08]}
22. Kf1 {[%clk 0:48:50]}  f4 {[%clk 0:05:48]} 23. gxf4 {[%clk 0:38:57]}  Qd7 {[%clk 0:03:23]} 24. Qg3 {[%clk 0:38:20]}  Ra6 {[%clk 0:03:11]}
25. Qg2 {[%clk 0:33:50]}  Rb6 {[%clk 0:03:17]} 26. Bd1 {[%clk 0:32:29]}  Bxh3 {[%clk 0:03:02]} 27. Qxh3 {[%clk 0:31:36]}  Qxh3+ {[%clk 0:02:16]}
28. Rxh3 {[%clk 0:32:01]}  g5 {[%clk 0:01:58]} 29. hxg5 {[%clk 0:24:54]}  hxg5 {[%clk 0:02:24]} 30. Bg4 {[%clk 0:18:50]}  gxf4 {[%clk 0:02:21]}
31. Rb1 {[%clk 0:18:19]}  Rg6 {[%clk 0:02:16]} 32. Bd7 {[%clk 0:17:56]}  fxe3+ {[%clk 0:02:21]} 33. Ke2 {[%clk 0:18:13]}  Rg2+ {[%clk 0:01:44]}
34. Kxe3 {[%clk 0:18:34]}  Bh6+ {[%clk 0:02:02]} 0-1

[Event "2026 European Womens Championship"]
[Site "Batumi, GE"]
[Date "2026.06.03"]
[Round "9"]
[White "Recica, Jona"]
[Black "Kedelidze, Aneta"]
[Result "1/2-1/2"]
[Board "78"]
[TimeControl "5400+30"]
[WhiteFideId "22105239"]
[BlackFideId "13626191"]
[WhiteElo "1842"]
[BlackElo "1676"]
[WhiteClock "0:31:22"]
[BlackClock "0:00:43"]
[Variant "Standard"]

1. e4 {[%clk 1:30:56]}  c5 {[%clk 1:30:57]} 2. Nc3 {[%clk 1:31:18]}  d6 {[%clk 1:31:24]} 3. f4 {[%clk 1:31:41]}  g6 {[%clk 1:31:46]}
4. Nf3 {[%clk 1:32:06]}  Bg7 {[%clk 1:32:11]} 5. Bb5+ {[%clk 1:31:37]}  Bd7 {[%clk 1:32:31]} 6. Bxd7+ {[%clk 1:32:02]}  Qxd7 {[%clk 1:32:24]}
7. d3 {[%clk 1:30:54]}  Nc6 {[%clk 1:32:44]} 8. O-O {[%clk 1:31:15]}  e6 {[%clk 1:31:18]} 9. Ne2 {[%clk 1:29:42]}  Nge7 {[%clk 1:28:23]}
10. c3 {[%clk 1:28:31]}  d5 {[%clk 1:25:07]} 11. Qe1 {[%clk 1:26:06]}  O-O {[%clk 1:18:34]} 12. Qh4 {[%clk 1:24:31]}  c4 {[%clk 1:09:09]}
13. dxc4 {[%clk 1:18:40]}  dxc4 {[%clk 1:01:22]} 14. Ng3 {[%clk 1:12:48]}  f5 {[%clk 0:49:44]} 15. Be3 {[%clk 1:05:05]}  fxe4 {[%clk 0:36:18]}
16. Ng5 {[%clk 1:04:18]}  h6 {[%clk 0:36:16]} 17. N5xe4 {[%clk 1:03:58]}  Nf5 {[%clk 0:34:45]} 18. Nxf5 {[%clk 1:02:15]}  exf5 {[%clk 0:34:55]}
19. Rad1 {[%clk 1:01:55]}  Qe6 {[%clk 0:34:18]} 20. Bc5 {[%clk 0:58:34]}  fxe4 {[%clk 0:32:31]} 21. Bxf8 {[%clk 0:57:18]}  Rxf8 {[%clk 0:32:45]}
22. Qf2 {[%clk 0:55:32]}  e3 {[%clk 0:18:13]} 23. Qe2 {[%clk 0:53:55]}  Re8 {[%clk 0:15:26]} 24. Rf3 {[%clk 0:49:46]}  Bf8 {[%clk 0:15:03]}
25. h3 {[%clk 0:44:01]}  h5 {[%clk 0:10:57]} 26. f5 {[%clk 0:42:48]}  gxf5 {[%clk 0:10:17]} 27. Rg3+ {[%clk 0:39:18]}  Bg7 {[%clk 0:10:39]}
28. Qxh5 {[%clk 0:38:18]}  e2 {[%clk 0:09:02]} 29. Re1 {[%clk 0:38:16]}  f4 {[%clk 0:01:45]} 30. Rg6 {[%clk 0:35:00]}  Qe3+ {[%clk 0:02:11]}
31. Kh2 {[%clk 0:33:32]}  f3 {[%clk 0:01:55]} 32. Qd5+ {[%clk 0:32:24]}  Kf8 {[%clk 0:01:32]} 33. Qf5+ {[%clk 0:32:25]}  Kg8 {[%clk 0:01:37]}
34. Qd5+ {[%clk 0:32:46]}  Kh7 {[%clk 0:01:29]} 35. Qh5+ {[%clk 0:30:22]}  Kg8 {[%clk 0:00:57]} 36. Qd5+ {[%clk 0:30:44]}  Kh7 {[%clk 0:01:24]}
37. Qh5+ {[%clk 0:30:59]}  Kg8 {[%clk 0:00:35]} 38. Qd5+ {[%clk 0:31:22]}  Kh7 {[%clk 0:00:43]} 1/2-1/2